bitfinex-derivatives/quotes_SOLF0:USTF0_20241211
["timestamp","ask_amount","ask_price","bid_price","bid_amount"]
[1733939165011,2.179,229.22,229.19,5.45035896]
[1733939165216,2.179,229.22,229.18,2.7249]
[1733939165519,2.18,229.26,229.18,2.7249]
[1733939166019,2.179,229.22,229.18,4.9042]
[1733939167320,2.179,229.22,229.19,2.1792]
[1733939167521,2.18,229.26,229.19,2.1792]
[1733939167712,2.1788,229.24,229.19,2.1792]
[1733939168512,2.1787,229.25,229.21,2.179]
[1733939168714,4.3587,229.25,229.21,2.179]
[1733939169318,4.3587,229.25,229.22,2.179]
[1733939170225,2.18,229.25,229.18,2.7249]
[1733939170424,2.18,229.25,229.23,2.1788]
[1733939170821,2.18,229.25,229.19,12.05146136]
[1733939171023,4.3587,229.25,229.19,12.05146136]
[1733939171419,2.18,229.25,229.18,2.7249]
[1733939171625,2.1788,229.24,229.2,2.1792]
[1733939171920,2.1788,229.24,229.18,2.7249]
[1733939172219,2.1788,229.24,229.2,2.1791]
[1733939172626,2.1788,229.24,229.18,2.7249]
[1733939173625,2.1788,229.24,229.21,2.1791]
[1733939174926,2.1789,229.23,229.19,2.1792]
[1733939175427,2.1789,229.23,229.18,2.7249]
[1733939175428,2.18,229.25,229.18,2.7249]
[1733939175619,2.18,229.25,229.17,2.1794]
[1733939175819,2.18,229.25,229.13,7.43184327]
[1733939176421,2.1792,229.2,229.16,2.1795]
[1733939176827,2.1792,229.2,229.17,2.1794]
[1733939177829,2.1791,229.21,229.18,2.1793]
[1733939178028,2.18,229.25,229.13,19.48330463]
[1733939178228,2.18,229.24,229.16,12.05146136]
[1733939178423,2.18,229.26,229.19,12.05146136]
[1733939179120,2.18,229.27,229.19,12.05146136]
[1733939179323,2.18,229.27,229.17,4.2491]
[1733939179324,2.1788,229.24,229.2,2.1792]
[1733939179519,2.18,229.27,229.2,2.1792]
[1733939179728,14.23146136,229.27,229.17,2.8273]
[1733939180030,12.05146136,229.24,229.13,5.25184327]
[1733939181029,12.05146136,229.24,229.15,2.1796]
[1733939181426,12.05146136,229.24,229.13,5.25184327]
[1733939181825,1.3136,229.26,229.13,17.30330463]
[1733939182232,2.179,229.22,229.18,2.1793]
[1733939182425,1.3136,229.26,229.13,17.30330463]
[1733939182631,2.18,229.25,229.13,17.30330463]
[1733939183123,2.18,229.25,229.17,2.1794]
[1733939183124,2.1791,229.21,229.17,2.1794]
[1733939183327,2.18,229.25,229.13,5.25184327]
[1733939183524,1.3281,229.3,229.15,12.05146136]
[1733939183728,12.05146136,229.31,229.18,12.05146136]
[1733939183929,1.3679,229.34,229.18,12.05146136]
[1733939183930,2.18,229.3,229.18,12.05146136]
[1733939184132,1.4517,229.36,229.21,12.05146136]
[1733939184329,2.18,229.34,229.24,12.05146136]
[1733939185229,2.18,229.33,229.28,2.1784]
[1733939185427,2.18,229.33,229.24,12.05146136]
[1733939185631,2.1781,229.32,229.28,2.1784]
[1733939187928,2.1778,229.35,229.27,12.05146136]
[1733939188132,2.18,229.34,229.27,12.05146136]
[1733939188333,2.18,229.35,229.27,12.05146136]
[1733939188538,4.3578,229.35,229.3,2.1782]
[1733939189235,2.18,229.35,229.3,2.1782]
[1733939189431,2.1778,229.34,229.3,2.1782]
[1733939189637,2.18,229.35,229.3,2.1782]
[1733939190233,45.34,229.39,229.27,12.05146136]
[1733939190435,1.3679,229.41,229.27,12.05146136]
[1733939190637,2.18,229.4,229.28,2.7419]
[1733939190831,2.1775,229.38,229.33,2.1779]
[1733939191032,2.18,229.4,229.28,2.7419]
[1733939191435,2.1776,229.37,229.28,2.7419]
[1733939192129,2.18,229.4,229.28,2.7419]
[1733939192330,2.1777,229.36,229.31,2.178]
[1733939193136,2.1777,229.36,229.32,2.178]
[1733939194334,2.1783,229.3,229.25,2.1786]
[1733939194542,12.05146136,229.36,229.21,14.79696136]
[1733939194742,12.05146136,229.3,229.21,2.7455]
[1733939194936,2.1785,229.27,229.21,4.9245]
[1733939195139,2.18,229.29,229.21,4.9245]
[1733939195344,12.05146136,229.27,229.16,2.18]
[1733939195840,12.05146136,229.27,229.18,2.1793]
[1733939196643,2.1788,229.25,229.18,2.1793]
[1733939196942,2.18,229.24,229.18,2.1793]
[1733939197135,2.18,229.24,229.16,2.18]
[1733939197136,2.1792,229.2,229.16,2.1795]
[1733939197838,14.23146136,229.24,229.12,6.2496]
[1733939198043,2.1791,229.21,229.17,2.1794]
[1733939198237,14.23146136,229.24,229.12,18.30106136]
[1733939198541,14.23146136,229.24,229.14,5.26596816]
[1733939198736,14.23146136,229.24,229.12,4.0696]
[1733939199442,12.05146136,229.21,229.12,4.0696]
[1733939199645,12.05146136,229.21,229.12,6.2495]
[1733939200240,12.05146136,229.21,229.12,4.0696]
[1733939201244,2.1794,229.18,229.13,2.1798]
[1733939201442,2.1794,229.18,229.12,4.0696]
[1733939201443,2.18,229.18,229.12,4.0696]
[1733939201939,2.18,229.18,229.11,5.13398583]
[1733939202134,2.18,229.18,229.1,2.1801]
[1733939202135,2.1795,229.16,229.1,2.1801]
[1733939202340,14.23146136,229.18,229.04,4.2582]
[1733939202536,14.23146136,229.18,229.05,5.14863642]
[1733939203042,14.23146136,229.18,229.07,2.1803]
[1733939203439,14.23146136,229.18,229.05,5.14863642]
[1733939204038,2.18,229.18,229.06,12.05146136]
[1733939204743,2.1796,229.16,229.1,2.18]
[1733939205446,2.1796,229.16,229.06,12.05146136]
[1733939205743,2.1798,229.14,229.06,12.05146136]
[1733939206741,2.1798,229.14,229.09,2.1802]
[1733939206941,14.23146136,229.18,229.05,5.14863642]
[1733939207142,14.23146136,229.18,229.08,2.1803]
[1733939209244,2.1798,229.13,229.09,2.1802]
[1733939209444,4.3598,229.13,229.09,2.1802]
[1733939209840,2.18,229.17,229.06,12.05146136]
[1733939210037,2.18,229.17,229.1,12.05146136]
[1733939210438,2.18,229.17,229.14,2.1797]
[1733939215344,2.18,229.17,229.1,2.1801]
[1733939216042,2.18,229.17,229.09,2.1802]
[1733939216247,2.18,229.17,229.06,2.18]
[1733939216546,2.1797,229.14,229.1,2.1801]
[1733939216946,2.18,229.17,229.06,2.18]
[1733939217541,4.3595,229.17,229.07,12.05146136]
[1733939217749,4.3595,229.17,229.12,2.1799]
[1733939217949,2.18,229.17,229.12,2.1799]
[1733939218147,2.1797,229.15,229.11,2.18]
[1733939219149,2.1797,229.15,229.12,2.1799]
[1733939219544,2.18,229.17,229.07,12.05146136]
[1733939219948,2.18,229.18,229.1,12.05146136]
[1733939221349,2.1796,229.15,229.07,12.05146136]
[1733939221654,2.18,229.18,229.07,12.05146136]
[1733939222554,2.1795,229.17,229.07,12.05146136]
[1733939223858,2.18,229.18,229.05,5.14863642]
[1733939224353,12.05146136,229.16,229.04,4.2582]
[1733939224859,2.1804,229.07,229.01,0.21028]
[1733939225052,12.05146136,229.13,229.01,0.21028]
[1733939225053,2.18,229.09,229.01,0.21028]
[1733939225453,2.1805,229.06,229.02,2.1808]
[1733939225953,2.1806,229.05,229.02,2.1808]
[1733939226651,2.18,229.09,229.02,2.1808]
[1733939226652,2.1804,229.07,229.02,2.1808]
[1733939227555,2.1805,229.06,229.02,2.1808]
[1733939229253,2.1805,229.06,229.01,0.21028]
[1733939229452,2.1804,229.08,229.01,0.21028]
[1733939230460,2.1804,229.08,229.04,2.1806]
[1733939230957,2.1804,229.08,229.01,0.21028]
[1733939231262,2.18,229.08,229.01,0.21028]
[1733939231963,2.18,229.08,229.05,2.1805]
[1733939232263,2.18,229.08,229.01,0.21028]
[1733939232461,12.05146136,229.07,229.01,0.21028]
[1733939233357,2.1809,229.02,229.01,0.21028]
[1733939233558,4.3609,229.02,229.01,0.21028]
[1733939233758,2.18,229.02,228.89,4.2409]
[1733939234064,2.1813,228.98,228.89,4.2409]
[1733939234657,2.18,228.97,228.89,9.3622314]
[1733939235552,2.1815,228.96,228.93,2.1817]
[1733939235755,2.18,228.97,228.93,2.1817]
[1733939235956,2.18,228.97,228.89,9.3622314]
[1733939236162,4.3614,228.97,228.91,2.1819]
[1733939236464,2.18,228.97,228.89,9.3622314]
[1733939237261,2.18,228.97,228.95,2.1815]
[1733939237468,12.05146136,229.04,228.91,12.05146136]
[1733939237666,2.18,229.03,228.94,12.05146136]
[1733939238062,4.3608,229.03,228.99,2.1812]
[1733939238366,4.3608,229.03,228.94,12.05146136]
[1733939238563,2.1807,229.05,229.0,2.1811]
[1733939238769,2.18,229.04,228.94,12.05146136]
[1733939240166,14.23146136,229.04,228.91,14.23146136]
[1733939240566,2.181,229.01,228.97,2.1813]
[1733939241267,14.23146136,229.04,228.91,2.18]
[1733939241469,12.05146136,229.0,228.89,9.3622314]
[1733939241661,2.18,228.99,228.89,9.3622314]
[1733939242360,2.1814,228.97,228.92,2.1818]
[1733939242765,2.1814,228.97,228.89,9.3622314]
[1733939242766,2.18,228.99,228.89,9.3622314]
[1733939242968,2.18,228.99,228.97,2.1813]
[1733939243563,2.1807,229.04,228.91,12.05146136]
[1733939243771,4.3607,229.04,228.94,12.05146136]
[1733939244467,12.05146136,229.09,228.94,12.05146136]
[1733939244677,2.18,229.08,228.97,12.05146136]
[1733939244867,2.18,229.08,229.03,2.1807]
[1733939245060,13.49296136,229.12,228.97,2.18]
[1733939245260,2.18,229.11,229.0,12.05146136]
[1733939245460,2.18,229.1,229.0,12.05146136]
[1733939245665,2.1803,229.08,229.0,12.05146136]
[1733939245861,2.18,229.1,229.0,12.05146136]
[1733939247071,2.18,229.1,229.06,2.1804]
[1733939247380,2.18,229.1,229.0,12.05146136]
[1733939247677,4.3602,229.1,229.0,12.05146136]
[1733939248068,2.1803,229.09,229.04,2.1806]
[1733939248469,2.18,229.1,229.04,2.1806]
[1733939249574,2.1803,229.08,229.04,2.1806]
[1733939250176,2.1803,229.08,229.01,5.2883249]
[1733939250380,2.1803,229.08,229.05,2.1806]
[1733939251274,2.1802,229.09,229.05,2.1806]
[1733939251475,2.1802,229.09,229.01,5.2883249]
[1733939252370,12.05146136,229.09,228.98,4.1413]
[1733939252780,12.05146136,229.06,228.91,12.05146136]
[1733939252976,2.181,229.01,228.91,14.23146136]
[1733939253875,2.181,229.01,228.97,2.1813]
[1733939254281,2.1811,229.0,228.97,2.1813]
[1733939254480,2.18,229.05,228.98,2.1812]
[1733939254674,2.18,229.05,228.91,14.23146136]
[1733939255079,2.1811,229.0,228.96,2.1814]
[1733939255483,2.18,229.0,228.9,4.1748]
[1733939256176,2.1812,228.99,228.95,2.1815]
[1733939256578,2.18,229.0,228.9,4.1748]
[1733939256786,2.18,229.0,228.93,2.1817]
[1733939257175,2.1815,228.96,228.92,2.1818]
[1733939257480,2.1815,228.96,228.9,4.1748]
[1733939258988,2.1815,228.96,228.92,2.1817]
[1733939259181,2.1815,228.96,228.9,4.1748]
[1733939260896,2.1815,228.96,228.91,2.1818]
[1733939261096,2.1815,228.95,228.9,4.1748]
[1733939261286,14.23146136,229.0,228.9,4.1748]
[1733939261492,14.23146136,229.0,228.92,2.1817]
[1733939262196,2.1815,228.96,228.92,2.1817]
[1733939262393,2.18,228.95,228.81,4.3658]
[1733939262594,2.18,228.94,228.82,18.51236136]
[1733939262899,2.18,228.94,228.87,2.1825]
[1733939263193,2.1821,228.92,228.87,2.1825]
[1733939263593,14.23146136,228.94,228.87,2.1825]
[1733939264798,2.1821,228.92,228.87,2.1825]
[1733939265400,14.23146136,228.94,228.87,2.1825]
[1733939265601,2.1822,228.91,228.87,2.1825]
[1733939266701,0.5,228.9,228.82,4.2809]
[1733939266894,2.18,228.89,228.82,2.8817]
[1733939267292,2.1825,228.87,228.82,2.1829]
[1733939267495,2.1825,228.87,228.8,5.23433738]
[1733939267701,2.1826,228.86,228.82,2.183]
[1733939268405,2.1826,228.86,228.81,2.1831]
[1733939268606,2.1826,228.86,228.77,1.4236]
[1733939268997,2.1826,228.86,228.81,2.183]
[1733939269202,2.1826,228.86,228.77,1.4236]
[1733939269404,2.1825,228.88,228.77,1.4236]
[1733939269707,2.1825,228.88,228.84,2.1828]
[1733939269899,2.18,228.89,228.78,5.28841269]
[1733939270097,12.05146136,228.88,228.77,1.4236]
[1733939270401,12.05146136,228.85,228.77,1.4236]
[1733939270607,2.1832,228.81,228.77,1.4236]
[1733939271906,2.18,228.84,228.77,1.4236]
[1733939272507,4.3628,228.84,228.77,1.4236]
[1733939272903,2.18,228.84,228.77,1.4236]
[1733939273104,2.1829,228.83,228.77,1.4236]
[1733939273508,2.18,228.84,228.77,1.4236]
[1733939274506,4.3629,228.84,228.77,1.4236]
[1733939274906,2.18,228.87,228.77,1.4236]
[1733939275107,2.18,228.87,228.77,3.6036]
[1733939275308,2.18,228.87,228.79,12.05146136]
[1733939276409,2.18,228.87,228.86,2.1826]
[1733939276605,2.18,228.87,228.79,12.05146136]
[1733939278608,2.18,228.87,228.86,2.1826]
[1733939279406,0.5,228.9,228.88,2.1824]
[1733939279606,0.5,228.9,228.82,12.05146136]
[1733939279810,0.5,228.9,228.77,1.4236]
[1733939280011,2.1827,228.85,228.81,2.183]
[1733939280711,2.1829,228.84,228.8,2.1832]
[1733939280906,2.18,228.86,228.77,1.4236]
[1733939281513,2.18,228.86,228.78,12.05146136]
[1733939281706,0.5,228.9,228.78,14.23146136]
[1733939281707,2.68,228.9,228.78,14.23146136]
[1733939282210,2.68,228.9,228.78,2.18]
[1733939282513,2.68,228.9,228.77,1.4236]
[1733939283216,2.1826,228.86,228.82,2.183]
[1733939283406,0.5,228.9,228.77,1.4236]
[1733939283612,2.18,228.89,228.77,1.4236]
[1733939283808,2.1825,228.87,228.8,2.1831]
[1733939284014,2.1825,228.87,228.77,1.4236]
[1733939284614,2.1824,228.88,228.84,2.1828]
[1733939285013,2.18,228.89,228.77,1.4236]
[1733939285318,2.18,228.89,228.82,2.1829]
[1733939285818,2.18,228.89,228.8,2.1832]
[1733939286613,2.1829,228.84,228.8,2.1832]
[1733939286819,4.3629,228.84,228.8,2.1832]
[1733939287520,2.18,228.84,228.77,1.4236]
[1733939288217,2.18,228.84,228.83,2.1829]
[1733939288424,2.1825,228.87,228.83,2.1829]
[1733939289118,2.1826,228.86,228.82,2.183]
[1733939289721,2.1826,228.86,228.77,1.4236]
[1733939290018,0.5,228.9,228.78,12.05146136]
[1733939290225,0.5,228.9,228.81,12.05146136]
[1733939290518,0.5,228.9,228.87,2.1824]
[1733939291222,0.5,228.9,228.82,1.3525]
[1733939291522,0.5,228.9,228.84,2.1828]
[1733939291927,2.1824,228.88,228.85,2.1827]
[1733939292825,0.5,228.9,228.85,2.1827]
[1733939294623,2.1824,228.88,228.85,2.1827]
[1733939296324,2.1824,228.88,228.82,1.3525]
[1733939296325,0.5,228.9,228.83,2.1828]
[1733939296624,2.1824,228.88,228.84,2.1828]
[1733939296927,2.1824,228.88,228.82,1.3525]
[1733939297928,2.1831,228.81,228.77,1.4236]
[1733939298723,2.18,228.82,228.77,1.4236]
[1733939299326,2.18,228.85,228.77,1.4236]
[1733939300521,2.18,228.85,228.82,2.1829]
[1733939300718,2.18,228.85,228.77,1.4236]
[1733939302029,4.3627,228.85,228.77,1.4236]
[1733939302223,2.18,228.85,228.77,1.4236]
[1733939302628,2.1829,228.83,228.77,1.4236]
[1733939303029,2.1829,228.83,228.79,2.1832]
[1733939303428,2.1829,228.83,228.77,1.4236]
[1733939304127,2.183,228.82,228.77,1.4236]
[1733939304523,2.18,228.85,228.77,1.4236]
[1733939304729,2.1829,228.83,228.79,2.1832]
[1733939305623,2.1829,228.84,228.79,2.1832]
[1733939305822,2.18,228.85,228.78,2.1834]
[1733939306029,14.23146136,228.85,228.77,1.4236]
[1733939306228,14.23146136,228.85,228.76,1.4455]
[1733939306429,2.1831,228.81,228.77,2.1834]
[1733939306729,14.23146136,228.85,228.76,1.4455]
[1733939307829,2.183,228.82,228.77,2.1834]
[1733939308021,2.183,228.82,228.76,1.4455]
[1733939308226,2.18,228.85,228.76,13.49696136]
[1733939308429,2.1825,228.88,228.79,12.05146136]
[1733939308627,2.18,228.87,228.79,12.05146136]
[1733939308933,2.18,228.87,228.84,2.1828]
[1733939309327,9.91921213,228.88,228.84,2.1828]
[1733939309530,2.16,228.87,228.84,2.1828]
[1733939309825,9.91921213,228.88,228.84,2.1828]
[1733939310123,2.16,228.87,228.84,2.1828]
[1733939310430,0.5,228.9,228.84,7.73671213]
[1733939310728,2.16,228.89,228.86,7.73671213]
[1733939311628,0.5,228.9,228.86,7.73671213]
[1733939312229,0.5,228.9,228.87,2.1825]
[1733939312429,0.5,228.9,228.86,7.73671213]
[1733939312729,0.5,228.9,228.87,2.1825]
[1733939313431,0.5,228.9,228.89,2.1823]
[1733939313631,12.08385882,229.02,228.89,12.08385882]
[1733939313930,2.16,229.01,228.89,12.08385882]
[1733939314129,12.08385882,229.04,228.94,2.1818]
[1733939314130,2.1815,228.98,228.94,2.1818]
[1733939318231,4.3414,228.99,228.89,12.08385882]
[1733939318535,4.3414,228.99,228.95,2.1817]
[1733939319327,2.16,228.99,228.95,2.1817]
[1733939319533,2.1815,228.98,228.95,2.1817]
[1733939320236,2.1815,228.98,228.94,2.1818]
[1733939320431,2.1815,228.98,228.89,12.08385882]
[1733939321037,2.1815,228.98,228.94,2.1818]
[1733939321639,2.1815,228.98,228.95,2.1817]
[1733939321938,2.16,228.99,228.92,12.08385882]
[1733939322140,2.16,228.99,228.97,2.1815]
[1733939322936,2.16,228.99,228.96,2.1816]
[1733939325837,2.1813,229.0,228.96,2.1816]
[1733939326741,2.16,229.01,228.92,12.08385882]
[1733939327341,13.47395882,229.06,228.92,12.08385882]
[1733939327642,2.1812,229.02,228.98,2.1814]
[1733939327837,2.16,229.05,228.92,12.08385882]
[1733939328038,12.08385882,229.03,228.91,5.22271699]
[1733939328840,2.1813,229.0,228.94,2.1818]
[1733939329037,2.16,229.0,228.94,2.1818]
[1733939329238,2.16,229.0,228.91,5.22271699]
[1733939329434,2.16,229.0,228.92,12.08385882]
[1733939330142,2.16,229.0,228.96,2.1816]
[1733939330644,2.16,229.0,228.92,12.08385882]
[1733939331251,2.16,229.0,228.97,2.1815]
[1733939331442,2.16,229.0,228.92,12.08385882]
[1733939331646,2.16,229.0,228.94,2.1818]
[1733939331946,2.16,229.0,228.92,13.47285882]
[1733939332949,2.16,229.0,228.97,2.1815]
[1733939333345,2.16,229.0,228.98,2.1815]
[1733939335048,2.16,229.0,228.97,2.1816]
[1733939335445,2.16,229.0,228.97,7.72734818]
[1733939335651,2.16,229.03,228.97,7.72734818]
[1733939335949,2.16,229.03,228.99,2.1813]
[1733939336151,2.1811,229.02,228.99,2.1813]
[1733939336950,2.16,229.03,229.0,2.1813]
[1733939337250,7.72734818,229.05,228.97,7.72734818]
[1733939337449,7.72734818,229.07,228.99,7.72734818]
[1733939337751,2.16,229.05,229.02,2.181]
[1733939338649,4.3409,229.05,229.02,2.181]
[1733939339044,2.16,229.05,229.01,7.72734818]
[1733939339248,2.16,229.05,229.03,2.1809]
[1733939340754,9.88734818,229.07,229.02,2.1811]
[1733939341552,9.88734818,229.07,229.03,2.181]
[1733939342549,2.1807,229.06,229.03,2.181]
[1733939344355,2.1807,229.06,229.02,2.1811]
[1733939346453,9.88734818,229.07,229.0,2.1812]
[1733939346655,7.72734818,229.05,229.0,9.90854818]
[1733939347154,2.181,229.04,229.01,2.1812]
[1733939347354,2.181,229.04,229.0,7.72734818]
[1733939347852,2.1812,229.01,228.97,2.1815]
[1733939348059,7.72734818,229.03,228.93,1.4256]
[1733939348256,7.72734818,229.01,228.94,7.72734818]
[1733939348558,2.1814,228.99,228.95,2.1817]
[1733939349557,2.1815,228.98,228.94,7.72734818]
[1733939349753,2.1815,228.98,228.94,9.90914818]
[1733939350557,2.1815,228.98,228.95,2.1818]
[1733939350754,7.72734818,229.01,228.94,7.72734818]
[1733939350958,7.72734818,228.97,228.91,2.1821]
[1733939351158,7.72734818,228.97,228.89,7.72734818]
[1733939351454,9.88734818,228.97,228.89,7.72734818]
[1733939351859,2.1819,228.94,228.91,2.1821]
[1733939352360,2.16,228.97,228.91,7.72734818]
[1733939352549,7.72734818,228.99,228.88,6.67837344]
[1733939352752,2.16,228.98,228.93,7.72734818]
[1733939352952,2.16,228.98,228.95,2.1817]
[1733939356560,4.3415,228.98,228.93,2.1819]
[1733939356861,7.72734818,228.97,228.89,7.72734818]
[1733939357858,7.72734818,228.97,228.91,7.72734818]
[1733939358561,9.90894818,228.97,228.93,2.1819]
[1733939359059,7.72734818,228.97,228.91,7.72734818]
[1733939359260,2.1818,228.95,228.91,9.90944818]
[1733939359462,2.1818,228.95,228.91,2.1821]
[1733939359763,2.1818,228.95,228.89,7.72734818]
[1733939359960,2.1818,228.95,228.92,2.182]
[1733939361461,7.72734818,228.97,228.9,2.1822]
[1733939361462,2.1819,228.94,228.9,2.1822]
[1733939362062,7.72734818,228.97,228.88,5.32207344]
[1733939362263,2.1818,228.95,228.88,13.04942162]
[1733939362964,2.182,228.93,228.84,1.4225]
[1733939363164,2.182,228.93,228.88,7.72734818]
[1733939363357,7.72734818,228.95,228.9,2.1822]
[1733939363560,2.1819,228.94,228.9,2.1822]
[1733939365258,2.182,228.93,228.89,2.1823]
[1733939365765,9.88734818,228.93,228.87,2.1824]
[1733939365959,2.16,228.93,228.52,4.365]
[1733939366165,7.72734818,228.68,228.6,7.72734818]
[1733939366363,2.16,228.73,228.6,12.99364378]
[1733939366564,7.72734818,228.69,228.6,5.2662956]
[1733939366764,2.16,228.73,228.62,7.72734818]
[1733939366963,7.72734818,228.71,228.62,7.72734818]
[1733939367164,2.16,228.73,228.6,5.2662956]
[1733939367365,2.16,228.73,228.61,2.16]
[1733939367968,12.10848975,228.71,228.61,2.16]
[1733939368168,12.10848975,228.71,228.62,2.1849]
[1733939369267,14.29258975,228.71,228.62,2.1849]
[1733939369466,12.10848975,228.68,228.61,2.16]
[1733939369667,12.10848975,228.68,228.6,5.2662956]
[1733939370168,12.10848975,228.68,228.62,2.1849]
[1733939371272,2.16,228.73,228.6,5.2662956]
[1733939371468,2.16,228.73,228.61,1.3554]
[1733939372170,2.26,228.76,228.62,12.10848975]
[1733939372768,12.10848975,228.74,228.68,2.1843]
[1733939373070,12.10848975,228.74,228.65,2.26]
[1733939373266,12.10848975,228.74,228.69,2.1842]
[1733939375070,12.10848975,228.74,228.65,2.26]
[1733939376576,2.26,228.76,228.7,2.1841]
[1733939376768,14.29198975,228.77,228.7,2.1841]
[1733939377074,14.29198975,228.77,228.65,2.26]
[1733939377075,16.55178975,228.79,228.65,14.36848975]
[1733939377269,16.55178975,228.79,228.72,2.1839]
[1733939377767,12.10848975,228.76,228.7,2.26]
[1733939378370,14.29188975,228.79,228.7,2.26]
[1733939378874,12.10848975,228.79,228.7,2.26]
[1733939379070,12.10848975,228.79,228.73,2.1839]
[1733939379469,12.10848975,228.79,228.73,2.1838]
[1733939379679,12.10848975,228.79,228.7,2.26]
[1733939380268,12.10848975,228.79,228.74,2.1837]
[1733939381578,12.10848975,228.79,228.75,2.1837]
[1733939382573,16.55158975,228.82,228.75,2.1837]
[1733939382782,14.36848975,228.82,228.76,2.1836]
[1733939383078,12.10848975,228.82,228.71,1.4489]
[1733939383271,12.10848975,228.82,228.71,13.55738975]
[1733939383478,2.1829,228.84,228.78,2.1833]
[1733939386580,2.1829,228.83,228.78,2.1833]
[1733939388282,2.1829,228.83,228.79,2.1833]
[1733939388675,12.10848975,228.85,228.75,2.26]
[1733939388877,14.29128975,228.85,228.8,2.1832]
[1733939389077,12.10848975,228.85,228.8,2.1832]
[1733939389382,12.10848975,228.85,228.75,2.26]
[1733939389383,7.74055621,228.83,228.81,2.1831]
[1733939390786,4.4426,228.86,228.79,2.1833]
[1733939390980,7.74055621,228.84,228.78,7.74055621]
[1733939391479,7.74055621,228.84,228.82,2.183]
[1733939391881,7.74055621,228.84,228.78,7.74055621]
[1733939394587,7.74055621,228.84,228.81,2.1831]
[1733939394790,2.6885,228.9,228.8,7.74055621]
[1733939394987,7.74055621,228.82,228.77,1.3471]
[1733939395189,7.74055621,228.82,228.79,2.1832]
[1733939396089,9.92355621,228.82,228.78,2.1834]
[1733939396289,7.74055621,228.82,228.77,1.3471]
[1733939397486,7.74055621,228.84,228.77,9.08765621]
[1733939398684,7.74055621,228.86,228.79,7.74055621]
[1733939400089,7.74055621,228.86,228.83,2.1828]
[1733939400288,7.74055621,228.86,228.77,1.3471]
[1733939400289,0.5101,228.97,228.81,9.98055621]
[1733939400490,0.5101,228.97,228.83,7.74055621]
[1733939400491,7.74055621,228.9,228.83,7.74055621]
[1733939401187,7.74055621,228.92,228.85,7.74055621]
[1733939401388,3.6433,228.97,228.87,7.74055621]
[1733939401592,7.74055621,228.94,228.87,7.74055621]
[1733939401791,9.92245621,228.94,228.89,2.1823]
[1733939402294,2.182,228.93,228.89,2.1823]
[1733939402484,7.74055621,228.92,228.89,2.1823]
[1733939402893,7.74055621,228.94,228.9,2.1822]
[1733939403495,7.74055621,228.94,228.91,2.1821]
[1733939403690,2.24,228.97,228.89,7.74055621]
[1733939403890,1.3173,228.99,228.89,7.74055621]
[1733939404092,7.74055621,228.98,228.91,7.74055621]
[1733939404590,7.74055621,228.98,228.93,2.1819]
[1733939404786,7.74055621,228.98,228.91,7.74055621]
[1733939404988,7.74055621,228.96,228.88,7.74055621]
[1733939405193,7.74055621,228.96,228.92,2.182]
[1733939405992,7.74055621,228.94,228.88,9.98055621]
[1733939406190,7.74055621,228.94,228.88,7.74055621]
[1733939406898,7.74055621,228.94,228.89,2.1823]
[1733939407099,9.92245621,228.94,228.88,7.74055621]
[1733939407301,7.74055621,228.94,228.88,7.74055621]
[1733939407597,9.92255621,228.92,228.85,2.24]
[1733939408599,9.92255621,228.92,228.88,2.1824]
[1733939409399,7.74055621,228.92,228.88,2.1824]
[1733939409804,7.74055621,228.92,228.89,2.1823]
[1733939409998,7.74055621,228.92,228.86,7.74055621]
[1733939410601,7.74055621,228.92,228.88,2.1823]
[1733939410909,9.92265621,228.92,228.88,2.1823]